Cogmind - Beta 10.2 @@@ ROGUE MODE // 2020.11.10 @ 14:24:24 // Winter2019/RPGLIKE Player: Demise Result: Destroyed by G-34 Mercenary with Small Laser Performance ------------- Evolutions (1) 500 Regions Visited (3) 600 Robots Destroyed (46) 230 Value Destroyed (1015) 1015 Prototype IDs (1) 20 Alien Tech Used (0) 0 Bonus (0) 0 TOTAL SCORE: 2365 Bonus ------- None Cogmind --------- Core Integrity 0/600 Matter 300/300 Energy 159/160 System Corruption 0% Temperature Cool (7) Movement Flying (40) Location -9/Materials Parts ------- > --- POWER (1) -------- Light Nuclear Core > --- PROPULSION (1) --- Flight Unit > --- UTILITY (3) ------ Improved Terrain Scanner Hacking Suite Thief Drone Bay (3/3) > --- WEAPON (2) ------- Assault Rifle Rocket Launcher > --- INVENTORY (3) ---- Datajack Blade Trap Blade Trap Peak State ------------ > --- POWER ------------ Light Nuclear Core > --- PROPULSION ------- Flight Unit > --- UTILITY ---------- Improved Terrain Scanner Hacking Suite Thief Drone Bay > --- WEAPON ----------- Assault Rifle Rocket Launcher > --- INVENTORY -------- Blade Trap Blade Trap [Rating: 19] Favorites ----------- Power Ion Engine Engine Ion Engine Power Core Light Nuclear Core Propulsion Light Treads Treads Light Treads Hover Unit Hover Unit Flight Unit Flight Unit Utility Improved Terrain Scanner Device Improved Terrain Scanner Hackware Hacking Suite Weapon Assault Rifle Energy Gun EM Pulse Gun Ballistic Gun Assault Rifle Launcher Rocket Launcher Build | -11 -10 -10 -9 ------- Run | Scr Mat Min Mat Slots Evolved 3 | 1 . 1 1 Power . | . . . . Propulsion . | . . . . Utility 2 | . . 1 1 Weapon 1 | 1 . . . Parts Attached 18 | 3 5 9 1 Power 2 | . 1 1 . Engine 1 | . 1 . . Core 1 | . . 1 . Reactor . | . . . . Propulsion 6 | 1 4 1 . Treads 3 | 1 2 . . Leg . | . . . . Wheel . | . . . . Hover 1 | . 1 . . Flight 2 | . 1 1 . Utility 5 | 1 . 3 1 Device 4 | 1 . 2 1 Storage . | . . . . Processor . | . . . . Hackware 1 | . . 1 . Protection . | . . . . Artifact . | . . . . Weapon 5 | 1 . 4 . Energy Gun . | . . . . Energy Cannon . | . . . . Ballistic Gun 2 | 1 . 1 . Ballistic Cannon . | . . . . Launcher 3 | . . 3 . Special Weapon . | . . . . Impact Weapon . | . . . . Slashing Weapon . | . . . . Piercing Weapon . | . . . . Special Melee Weapon . | . . . . Unidentified Prototypes 1 | . . 1 . Parts Lost . | . . . . Power . | . . . . Propulsion . | . . . . Utility . | . . . . Weapon . | . . . . Highest Loss Streak . | . . . . Average Slot Usage (%) 100 | . 100 100 100 Engine 17 | . 20 15 . Core 1 | . . . 14 Treads 13 | . 18 . . Hover 4 | . 1 16 . Flight 1 | . . . 14 Device 19 | . 20 16 27 Hackware 4 | . . 15 14 Energy Gun 15 | . 20 5 . Ballistic Gun 18 | . 20 16 14 Launcher 3 | . . 10 14 Naked Turns . | . . . . Heaviest Build 16 | 10 10 12 16 Greatest Support 33 | 20 33 16 19 Greatest Overweight (x) 2 | 2 1 . . Average Overweight (x) . | . . . . Largest Inventory Capacity 3 | 2 2 3 3 Average Capacity 2 | . 2 2 3 Most Carried 3 | 1 2 3 3 Average Carried 2 | . 1 2 2 Final Capacity 3 | 2 2 3 3 Final Carried 3 | 1 2 3 3 Class Distribution -------------------- 94% | Hacker-Mutant 5% | Mutant Dominant Class ---------------- Hacker-Mutant | -10/Materials Hacker-Mutant | -10/Mines Hacker-Mutant | -9/Materials Resources | -11 -10 -10 -9 ----------- Run | Scr Mat Min Mat Matter Collected 855 | 210 320 244 81 Remotely . | . . . . Salvage Created 1224 | 153 657 256 158 Parts 83 | 4 47 17 15 Haulers Intercepted 2 | . 2 . . Recyclers Shooed . | . . . . Parts Field Recycled . | . . . . Retrieved Matter . | . . . . Parts Self-Destructed . | . . . . Prevented . | . . . . Kills | -11 -10 -10 -9 ------- Run | Scr Mat Min Mat Combat Hostiles Destroyed 29 | . 15 8 6 Guns 15 | . 11 2 2 AOE 14 | . 4 6 4 Classes Destroyed 9 | 2 6 1 . Worker 3 | . 2 1 . Tunneler 4 | 2 . 2 . Hauler 2 | . 2 . . Recycler 3 | 1 1 . 1 Operator 4 | . 3 . 1 Watcher 2 | . 1 . 1 Swarmer 13 | . 6 3 4 Grunt 15 | . 9 4 2 Assembled 1 | . . 1 . Best Kill Streak 7 | 1 4 5 7 Combat Bots Only 5 | . 4 3 5 Max Kills in Single Turn 4 | 1 4 3 3 Gunslinging . | . . . . Exploded 4 | . 4 3 2 Melee . | . . . . Uniques/NPCs Destroyed . | . . . . Combat | -11 -10 -10 -9 -------- Run | Scr Mat Min Mat Damage Taken 1329 | . 682 197 450 Core 1072 | . 555 159 358 Absorbed by Shields . | . . . . Redirected to Core 842 | . 421 131 290 Core Remaining (%) 79 | 100 . 59 . Volleys Fired 137 | 13 85 29 10 Largest 2 | 1 2 2 2 Hottest 60 | 40 60 60 53 Shots Fired 230 | 13 169 35 13 Gun 219 | 13 169 28 9 Cannon . | . . . . Launcher 11 | . . 7 4 Special . | . . . . Kinetic 120 | . 85 26 9 Thermal . | . . . . Explosive 11 | . . 7 4 Electromagnetic 99 | 13 84 2 . Robot Hit Streak 10 | 8 10 8 3 Robot Miss Streak 4 | 2 4 2 3 Penetration Max . | . . . . Secondary Targets 2 | . 2 . . Max Gunslinging Chain 1 | . 1 . . Shots Hit Robots 118 | 11 82 19 6 Core Hits 67 | 4 33 18 12 Critical Hits 1 | . . 1 . Critical Kills . | . . . . Critical Parts Destroyed 1 | . . 1 . Melee Attacks . | . . . . Impact . | . . . . Slashing . | . . . . Piercing . | . . . . Sneak Attacks . | . . . . Combat Hostiles . | . . . . Follow-up Attacks . | . . . . Damage Inflicted 2639 | 144 1291 839 365 Guns 1542 | 144 1091 231 76 Cannons . | . . . . Explosions 1095 | . 198 608 289 Melee . | . . . . Ramming 2 | . 2 . . Kinetic 752 | . 445 231 76 Thermal 146 | . 146 . . Explosive 897 | . . 608 289 Electromagnetic 842 | 144 698 . . Impact . | . . . . Slashing . | . . . . Piercing . | . . . . Highest Corruption 1 | . 1 1 . Average Corruption 1 | . 1 1 . Corruption Purged . | . . . . Effects 4 | . 2 2 . Message Errors 1 | . . 1 . Energy Discharges 1 | . . 1 . Data Loss (minor) 1 | . 1 . . Weapon Failures 1 | . 1 . . Overload Shots . | . . . . Overflow Damage 10 | . . 10 . Projectiles . | . . . . Explosions 10 | . . 10 . Melee . | . . . . Knockbacks . | . . . . Impact . | . . . . Kinetic . | . . . . Secondary . | . . . . Self-Inflicted Damage 180 | . 70 61 49 Shots 7 | . 3 2 2 Rammed 2 | . 2 . . Targets Rammed 2 | . 2 . . Kicked . | . . . . Crushed . | . . . . Highest Temperature 88 | . 36 12 88 Average Temperature 16 | . 14 4 39 Received Heat Transfer 509 | . 234 122 153 Siege Activations . | . . . . Robots Corrupted 2 | . 2 . . Combat Hostiles . | . . . . Parts Fried 3 | 2 1 . . Impact Corruptions . | . . . . Robots Melted . | . . . . Combat Hostiles . | . . . . Parts Melted . | . . . . Heat Transferred 200 | . 200 . . Parts Sabotaged . | . . . . Parts Stolen . | . . . . Parts Stripped . | . . . . Power Chain Reactions 2 | . 2 . . Missiles Intercepted . | . . . . Alert | -11 -10 -10 -9 ------- Run | Scr Mat Min Mat Peak Influence 419 | 15 419 384 364 Initial 139 | . 9 139 114 Average 238 | 8 254 238 197 Maximum Alert Level 2 | . 2 1 1 Low Security (%) 38 | 100 37 22 68 Level 1 55 | . 54 77 31 Level 2 5 | . 8 . . Level 3 . | . . . . Level 4 . | . . . . Level 5 . | . . . . High Security . | . . . . Max Security . | . . . . Squads Dispatched 5 | . 4 . 1 Investigation 1 | . 1 . . Extermination . | . . . . Reinforcement 4 | . 3 . 1 Assault . | . . . . Garrison . | . . . . Intercept . | . . . . Construction Impeded . | . . . . Haulers Reinforced . | . . . . Stealth | -11 -10 -10 -9 --------- Run | Scr Mat Min Mat Distress Signals 2 | . . . 2 Communications Jammed . | . . . . Distress Signals . | . . . . Times Spotted 59 | . 27 13 19 Peak Tracking Total 11 | . 4 4 11 Tactical Retreats 6 | . 1 3 2 Traps | -11 -10 -10 -9 ------- Run | Scr Mat Min Mat Traps Triggered 4 | . 4 . . Indirectly . | . . . . Trap Hack Attempts . | . . . . Triggered . | . . . . Disarmed . | . . . . Reprogrammed . | . . . . Reused . | . . . . Traps Extracted . | . . . . Installed . | . . . . Triggered 1 | . 1 . . Machines | -11 -10 -10 -9 ---------- Run | Scr Mat Min Mat Machines Disabled 20 | . 14 6 . Max in Single Turn 4 | . 1 4 . Machines Sabotaged . | . . . . Garrisons Compromised . | . . . . Overloaded Fab Kills . | . . . . Fab Network Shutdowns . | . . . . Hacking | -11 -10 -10 -9 --------- Run | Scr Mat Min Mat Machines Accessed 9 | . 6 1 2 Terminals 7 | . 5 . 2 Fabricators . | . . . . Repair Stations . | . . . . Recycling Units 1 | . 1 . . Scanalyzers . | . . . . Garrison Access . | . . . . Total Hacks 28 | . 18 1 9 Successful 18 | . 10 1 7 Failed 8 | . 7 . 1 Catastrophic . | . . . . Database Lockouts 2 | . 1 . 1 Manual 26 | . 18 . 8 Terminals 25 | . 16 . 9 Fabricators . | . . . . Repair Stations . | . . . . Recycling Units 2 | . 2 . . Scanalyzers . | . . . . Garrison Access . | . . . . Terminal Hacks 7 | . 3 1 3 Part Schematic 1 | . . . 1 Robot Analysis 1 | . 1 . . Open Door 1 | . . 1 . Branch Access Points 2 | . 1 . 1 Locate Traps 2 | . 1 . 1 Fabricator Hacks . | . . . . Repair Station Hacks . | . . . . Recycling Unit Hacks 2 | . 2 . . Report Inventory 1 | . 1 . . Retrieve Components 1 | . 1 . . Scanalyzer . | . . . . Garrison Access Hacks . | . . . . Unauthorized Hacks 9 | . 5 . 4 Terminals 9 | . 5 . 4 Track 2 | . 1 . 1 Botnet 5 | . 3 . 2 Operators 2 | . 1 . 1 Fabricators . | . . . . Repair Stations . | . . . . Recycling Units . | . . . . Scanalyzers . | . . . . Garrison Access . | . . . . Data Cores Recovered . | . . . . Used . | . . . . Hacking Detections 5 | . 5 . . Full Trace Events . | . . . . Feedback Events . | . . . . Feedback Blocked . | . . . . Robot Schematics Acquired . | . . . . Robots Built . | . . . . Matter . | . . . . Time . | . . . . Total Robot Build Rating . | . . . . Part Schematics Acquired 1 | . . . 1 Parts Built . | . . . . Matter . | . . . . Time . | . . . . Total Part Build Rating . | . . . . Parts Repaired . | . . . . Time . | . . . . Parts Recycled . | . . . . Recycled Matter . | . . . . Retrieved Matter . | . . . . Retrieved Components 9 | . 9 . . Parts Scanalyzed . | . . . . Part Schematics Acquired . | . . . . Parts Damaged . | . . . . Bothacking | -11 -10 -10 -9 ------------ Run | Scr Mat Min Mat Used RIF Installer . | . . . . Robots Hacked . | . . . . Non-combat . | . . . . Combat . | . . . . Robot Hacks Applied . | . . . . Relay Couplers Released . | . . . . Robots Rewired . | . . . . Allies Hacked . | . . . . Hacks Repelled . | . . . . Allies | -11 -10 -10 -9 -------- Run | Scr Mat Min Mat Total Allies . | . . . . Largest Group . | . . . . Highest-Rated Group . | . . . . Highest-Rated Ally . | . . . . Total Orders 1 | . . . 1 RETURN 1 | . . . 1 Ally Attacks 3 | . . . 3 Total Damage 8 | . . . 8 Kills . | . . . . Allies Corrupted . | . . . . Allies Melted . | . . . . Intel | -11 -10 -10 -9 ------- Run | Scr Mat Min Mat Robot Analysis Total 1 | . 1 . . Derelict Logs Recovered 1 | . . 1 . Drone Launches 1 | . . . 1 Drone Recoveries 1 | . . . 1 Exploration | -11 -10 -10 -9 ------------- Run | Scr Mat Min Mat Turns Passed 2163 | 73 1449 486 155 Spaces Moved 1631 | 18 771 592 250 Core 4 | 2 1 1 . Treads 655 | 16 639 . . Legs . | . . . . Wheels . | . . . . Hover 705 | . 131 574 . Flight 267 | . . 17 250 Fastest Speed 40 | 150 60 40 40 Average Speed 97 | 158 142 59 40 Slowest Speed 160 | 160 160 60 40 Overloaded Moves . | . . . . Propulsion Burnouts . | . . . . Robots Hopped 14 | . . . 14 Cave-ins Triggered . | . . . . Exploration Rate (%) 54 | 3 95 96 25 Regions Visited 3 Branch Regions 1 Pre-discovered Areas 1 | . . 1 . Known Exits Taken 2 | . 1 1 . Unknown Exits Taken 1 | 1 . . . Scrap Searched 1 | . . 1 . Spaces Dug . | . . . . Terrain Destroyed 99 | . 5 57 37 Melee . | . . . . Projectile . | . . . . AOE 99 | . 5 57 37 Terrain Rammed . | . . . . Walls Destroyed . | . . . . Machines Disabled . | . . . . Actions | -11 -10 -10 -9 --------- Run | Scr Mat Min Mat Total 1964 | 49 948 689 278 Wait 144 | 14 50 51 29 Move 1604 | 17 770 591 226 Hop 10 | . . . 10 Pick Up 8 | 1 3 3 1 Fast Attach 8 | 3 3 2 . Attach 3 | . . 2 1 Detach . | . . . . Swap 7 | . 2 5 . Drop 13 | 1 7 4 1 Fire 137 | 13 85 29 10 Melee . | . . . . Ram . | . . . . Kick . | . . . . Crush 2 | . 2 . . Escape Stasis . | . . . . Rewire . | . . . . Trap . | . . . . Miscellaneous 28 | . 26 2 . Route ------- -11/Scrapyard -10/Materials (discovered 5 exits: *Mat x3 / *Min x2) -10/Mines (discovered 2 exits: *Mat x2) -9/Materials (discovered 5 exits: [*Mat] / Min x2 / Sto x2) History --------- Turn | Location | Event 2 | -11/Scrapyard | Discovered new exit (range 1) 69 | -11/Scrapyard | Upgraded with Weapon slot (x1) 74 | -11/Scrapyard | Entered Materials 156 | -10/Materials | Discovered new exit (range 14) 419 | -10/Materials | Build established: Hacker-Mutant 621 | -10/Materials | Identified exit to Mines 699 | -10/Materials | Reached level 2 827 | -10/Materials | Discovered new exit (range 16) 1151 | -10/Materials | Discovered new exit (range 11) 1162 | -10/Materials | Central database locked down 1335 | -10/Materials | Reached level 3 1421 | -10/Materials | Discovered new exit (range 14) 1523 | -10/Materials | Entered Mines 1524 | -10/Mines | Learned location of Storage (-9) 1536 | -10/Mines | Found a hidden stash of uninstalled traps 1536 | -10/Mines | Upgraded with Utility slot (x1) 1599 | -10/Mines | Discovered new exit (range 10) 1653 | -10/Mines | Identified exit to Materials 1680 | -10/Mines | Found the Drone Emporium 1683 | -10/Mines | Found Prototype Device 1694 | -10/Mines | Received a Rocket Launcher from a helpful Derelict 1769 | -10/Mines | Excavation squad dispatched 1769 | -10/Mines | A large section of the Mines collapsed 1769 | -10/Mines | Identified Thief Drone Bay 1882 | -10/Mines | Reached level 4 2009 | -10/Mines | Entered Materials 2011 | -9/Materials | Reached level 5 2011 | -9/Materials | Upgraded with Utility slot (x1) 2014 | -9/Materials | Central database locked down 2096 | -9/Materials | Discovered new exit (range 8) 2111 | -9/Materials | Core integrity fell below 50% 2120 | -9/Materials | Core integrity fell below 20% 2121 | -9/Materials | Reached level 6 2142 | -9/Materials | Identified exit to Mines 2142 | -9/Materials | Identified exit to Storage 2164 | -9/Materials | Destroyed by G-34 Mercenary with Small Laser Last Messages --------------- 02137_ Acquired 6 matter. 02142_ Connecting with Terminal... >>Trojan(Botnet) Trojan loaded successfully. Testing... Terminal linked with 1 system. Awaiting botnet instructions. >>Traps(Locate) Found 4 traps in 1 array: 4x Shock Trap Map updated. >>Access(Branch) Found 4 branch access points: (14,90) Mines (49,48) Mines (81,12) Storage (33,66) Storage Map updated. 02143_ T-07 Excavator is excavating. 02148_ Connecting with Terminal... Map ----- +----------------------------------------------------+ | ???????? # ?###????#??#???## ## | | ???????###+####+###??????#?????????# #? | | ??#????# #?##?##???????#??# ][ ## | | ???????# ###??#??????#?#?## ][ #? | | ????#??###+##### ##?#??#####??????# ## | | ???????# T ## #????? #???##?########+#### | | ???##??# ## ####### ############## ## | | ???????# ! + | | ???????# ## | | ??#???## ### #+############## | | ??#????# #?# # ##???#?## ## | | ????#??########## # T ##?????### #^ | | ?????????????##?# ### # ######???# ##^ | | ?#??????#??????## #?# # ####?##### = ## | | ???????????###?## #?# # ##########* *## | | ?#??#??????##???# ### # ####?### % ## | | ?????????#????### ### g ##########??## ## | | ???????????##??## ### !##?########?? =%% ## | | ?????##????######+###g!%#??##%%%%##?## = #? | | ??#????????# # !##?#% %#?# % #? | | ???????????#""" # ####% ##### #? | | ???????#??##""" # #### ###### ## | | ????#?#????#""" # Y u % # | | ?????#?????# + g ########## ### | | ?????#?????#""" # ##??### | | ???????????#""" # @ #####+######## | | ???#???????#""" # # **= #?### | | ???????????# # # """%= #?#?# | | ?????????#?########## # """ #?############ | | ??#?????????## ? ??# # """ #??? ? ?????# | | ???????????#?# ! ?# # # ""???#??? | | ????????????#? ? ?# #! # ?""??#???? | | ???##????????? ?# # "T" # ? ?"" ?#??? | | ??#?#####????#? # # """ #?? ?? #???# | | ????# ? ????""" ?# # #? ? """ ????? | | ????# ??"?#?""" # #######/## ?""????## | | ????# """ # "?? # #?##### #???? ?"? ????? | | ????# """ # ? ?t + # # #?????????????# | | ##??# # "?" # # """ # ?#?##?+???????? | | ????# """ #???? ?# + """ # #????? ???????? | | ????# """ #???? ?# # """ #? ?? ? ???????? | | ????? """ #?? ?? # # # ??? ??????????? | | ?????? ??##Y#?## ####### ????????????? | | #???#####+########## ##???? ??????????????? | | ?#???# #??????????? ????????? | | ????## #??? ???????????????? | | #????# #?? ????????????????? | | ??#??## #"T"####### #???????#????????????? | | ??????# #####?#???########?????????? ????????? | | ??????# #?###??????#?????????????????????????? | +----------------------------------------------------+ Best States ------------- Heat Dissipation 25 Energy Generation 14 Energy Capacity 250 Matter Stores 300 Matter Capacity 300 Sight Range 16 Terrain Scan Range 16 Terrain Scan Density 110 Resistance: KI 10 Resistance: TH 10 Evasion (%) 62 Recoil Reduction 1 Offensive Hacking 20 Defensive Hacking 10 Item Schematics ----------------- Plasma Cutter | -9/Materials | Hacked Robot Schematics ------------------ None Fabricated ------------ Nothing Alien Tech Used ----------------- None Achievements -------------- None Challenges ------------ None RPGLIKE | -11 -10 -10 -9 --------- Run | Scr Mat Min Mat Levels Raised 5 | . 2 1 2 XP Earned 10795 | 3000 3110 2200 2485 XP Spent 8350 | 1250 2950 1250 2900 Upgrades 20 | 3 9 2 6 Utility Slot 2 | . . 1 1 Weapon Slot 1 | 1 . . . Mass Support 3 | . 2 . 1 Inventory Capacity 3 | 2 . 1 . Terrain Scan Density 1 | . 1 . . Ranged Accuracy 2 | . 2 . . Hack Attack % 2 | . 2 . . Hack Defense % 2 | . 2 . . KI Resistance % 2 | . . . 2 TH Resistance % 2 | . . . 2 Protomatter Created 259 | . 185 16 58 Integrity Restored 532 | . 484 48 . Core 472 | . 424 48 . Parts 60 | . 60 . . Protomatter Decayed 64 | . 16 12 36 Game ------ Seed ThrusterBoreTreads Manual? 0 Play Time 00:27:48 Cumulative 91.6 hours Start 2020.11.08 @ 20:35:52 End 2020.11.10 @ 14:24:24 Sessions 5 Manual Loads 0 Difficulty Rogue Special Mode Winter2019/RPGLIKE Game No. 79 Rogue 79 Adventurer 0 Explorer 0 Win Type - Total 0 Types 0/0/0/0/0/0/0/0/0 Lore% 48 Gallery% 56 Achievement% 52 Wizard Run 0 Options --------- ASCII 0 Keyboard 1 Movement Numpad Keybinds 0 Fullscreen 1 Font 12/Terminus Map View 83x54 Tactical HUD 1 Map Filters NONE Filters NONE Steam 1 RUN: 38ba0427-2e9e-4295-8b07-0161ca81ac28